[Event "Titled Tuesday Blitz May 23 Late 2023"]
[White "Estrada Nieto, Julian"]
[Black "Sailer, Mike"]
[WhiteFideId "5101018"]
[BlackFideId "2012901"]
[WhiteElo "2161"]
[BlackElo "2109"]
[Result "0-1"]
[Round "07"]
[TimeControl "180+2"]
[Date "2023.05.23"]
[WhiteClock "0:00:16"]
[BlackClock "0:00:11"]

1. e4 {[%clk 0:03:00]}  d5 {[%clk 0:02:57]} 2. exd5 {[%clk 0:03:00]}  Qxd5 {[%clk 0:02:57]} 3. Nc3 {[%clk 0:03:00]}  Qd6 {[%clk 0:02:38]} 4. d4 {[%clk 0:03:00]}  Nf6 {[%clk 0:02:34]} 5. Nf3 {[%clk 0:02:59]}  c6 {[%clk 0:02:31]} 6. Ne5 {[%clk 0:02:58]}  Nbd7 {[%clk 0:02:30]} 7. Bf4 {[%clk 0:02:57]}  Nxe5 {[%clk 0:02:28]} 8. Bxe5 {[%clk 0:02:58]}  Qb4 {[%clk 0:02:28]} 9. a3 {[%clk 0:02:45]}  Qa5 {[%clk 0:02:26]} 10. b4 {[%clk 0:02:38]}  Qd8 {[%clk 0:02:24]} 11. Bc4 {[%clk 0:02:38]}  Bg4 {[%clk 0:02:20]} 12. f3 {[%clk 0:02:32]}  Bh5 {[%clk 0:02:20]} 13. O-O {[%clk 0:02:32]}  e6 {[%clk 0:02:20]} 14. Qe1 {[%clk 0:02:18]}  Bd6 {[%clk 0:02:16]} 15. Rd1 {[%clk 0:02:02]}  O-O {[%clk 0:02:04]} 16. Qg3 {[%clk 0:01:59]}  Bxe5 {[%clk 0:01:56]} 17. dxe5 {[%clk 0:01:58]}  Nd5 {[%clk 0:01:56]} 18. Ne4 {[%clk 0:01:54]}  Qb6+ {[%clk 0:01:50]} 19. Kh1 {[%clk 0:01:53]}  Bg6 {[%clk 0:01:45]} 20. Bxd5 {[%clk 0:01:30]}  cxd5 {[%clk 0:01:38]} 21. Nc5 {[%clk 0:01:30]}  Rad8 {[%clk 0:01:17]} 22. c3 {[%clk 0:01:28]}  Qb5 {[%clk 0:00:57]} 23. f4 {[%clk 0:01:10]}  b6 {[%clk 0:00:52]} 24. Nb3 {[%clk 0:01:10]}  Qa4 {[%clk 0:00:46]} 25. Nd4 {[%clk 0:01:07]}  Qxa3 {[%clk 0:00:23]} 26. Ra1 {[%clk 0:01:02]}  Qb2 {[%clk 0:00:22]} 27. b5 {[%clk 0:01:02]}  Rc8 {[%clk 0:00:08]} 28. Nc6 {[%clk 0:00:53]}  Rc7 {[%clk 0:00:08]} 29. Rfb1 {[%clk 0:00:50]}  Bxb1 {[%clk 0:00:07]} 30. h4 {[%clk 0:00:44]}  Qxa1 {[%clk 0:00:07]} 31. Kh2 {[%clk 0:00:43]}  Bf5 {[%clk 0:00:07]} 32. h5 {[%clk 0:00:43]}  h6 {[%clk 0:00:07]} 33. Qf3 {[%clk 0:00:41]}  Qb1 {[%clk 0:00:06]} 34. Nd4 {[%clk 0:00:36]}  Qe4 {[%clk 0:00:06]} 35. Qg3 {[%clk 0:00:35]}  Rc4 {[%clk 0:00:05]} 36. Qh4 {[%clk 0:00:25]}  Rxd4 {[%clk 0:00:05]} 37. cxd4 {[%clk 0:00:24]}  Qxd4 {[%clk 0:00:06]} 38. Qg3 {[%clk 0:00:22]}  Qe4 {[%clk 0:00:07]} 39. Qf2 {[%clk 0:00:20]}  d4 {[%clk 0:00:07]} 40. Kg3 {[%clk 0:00:18]}  Qe3+ {[%clk 0:00:08]} 41. Qxe3 {[%clk 0:00:18]}  dxe3 {[%clk 0:00:09]} 42. Kf3 {[%clk 0:00:19]}  Rc8 {[%clk 0:00:10]} 43. g4 {[%clk 0:00:19]}  Bxg4+ {[%clk 0:00:09]} 44. Kxe3 {[%clk 0:00:19]}  Bxh5 {[%clk 0:00:10]} 45. Kd4 {[%clk 0:00:19]}  Rc5 {[%clk 0:00:10]} 46. f5 {[%clk 0:00:19]}  exf5 {[%clk 0:00:11]} 47. e6 {[%clk 0:00:19]}  fxe6 {[%clk 0:00:11]} 48. Ke3 {[%clk 0:00:18]}  Rxb5 {[%clk 0:00:11]} 49. Kd4 {[%clk 0:00:16]}  Rc5 {[%clk 0:00:11]} 0-1


[Site "https://www.chess.com"]

[Event "Titled Tuesday Blitz May 23 Late 2023"]
[White "Pace, Christopher"]
[Black "Santos Flores, Alberto"]
[WhiteFideId "2610167"]
[BlackFideId "3601234"]
[WhiteElo "2281"]
[BlackElo "2235"]
[Result "0-1"]
[Round "07"]
[TimeControl "180+2"]
[Date "2023.05.23"]
[WhiteClock "0:00:00"]
[BlackClock "0:01:02"]

1. e4 {[%clk 0:02:58]}  e6 {[%clk 0:02:59]} 2. d4 {[%clk 0:02:54]}  d5 {[%clk 0:02:59]} 3. Nd2 {[%clk 0:02:53]}  c5 {[%clk 0:02:59]} 4. Ngf3 {[%clk 0:02:51]}  cxd4 {[%clk 0:02:58]} 5. Nxd4 {[%clk 0:02:51]}  Nf6 {[%clk 0:02:54]} 6. exd5 {[%clk 0:02:37]}  Nxd5 {[%clk 0:02:53]} 7. N2f3 {[%clk 0:02:30]}  Bb4+ {[%clk 0:02:51]} 8. Bd2 {[%clk 0:01:58]}  Bxd2+ {[%clk 0:02:50]} 9. Qxd2 {[%clk 0:01:58]}  O-O {[%clk 0:02:49]} 10. Bd3 {[%clk 0:01:57]}  Nc6 {[%clk 0:02:48]} 11. Nxc6 {[%clk 0:01:56]}  bxc6 {[%clk 0:02:48]} 12. O-O {[%clk 0:01:57]}  h6 {[%clk 0:02:46]} 13. Rad1 {[%clk 0:01:52]}  Qb6 {[%clk 0:02:43]} 14. c4 {[%clk 0:01:43]}  Nf6 {[%clk 0:02:40]} 15. Ne5 {[%clk 0:01:29]}  c5 {[%clk 0:02:37]} 16. Bb1 {[%clk 0:00:54]}  Bb7 {[%clk 0:02:35]} 17. Qe3 {[%clk 0:00:37]}  Rfd8 {[%clk 0:02:19]} 18. b3 {[%clk 0:00:31]}  a5 {[%clk 0:02:18]} 19. h3 {[%clk 0:00:24]}  a4 {[%clk 0:02:18]} 20. Rd3 {[%clk 0:00:08]}  Rxd3 {[%clk 0:02:14]} 21. Bxd3 {[%clk 0:00:08]}  axb3 {[%clk 0:02:13]} 22. axb3 {[%clk 0:00:09]}  Rd8 {[%clk 0:02:00]} 23. Ra1 {[%clk 0:00:07]}  Ra8 {[%clk 0:01:40]} 24. Rxa8+ {[%clk 0:00:06]}  Bxa8 {[%clk 0:01:41]} 25. Bc2 {[%clk 0:00:06]}  Qd6 {[%clk 0:01:36]} 26. Nd3 {[%clk 0:00:05]}  Nd7 {[%clk 0:01:32]} 27. Qf4 {[%clk 0:00:04]}  Qxf4 {[%clk 0:01:29]} 28. Nxf4 {[%clk 0:00:05]}  Kf8 {[%clk 0:01:26]} 29. Ne2 {[%clk 0:00:05]}  Ke7 {[%clk 0:01:26]} 30. Nc3 {[%clk 0:00:06]}  Ne5 {[%clk 0:01:16]} 31. f3 {[%clk 0:00:05]}  Nc6 {[%clk 0:01:15]} 32. Kf2 {[%clk 0:00:05]}  Nd4 {[%clk 0:01:15]} 33. Bd1 {[%clk 0:00:06]}  Bc6 {[%clk 0:01:13]} 34. Ke3 {[%clk 0:00:05]}  e5 {[%clk 0:01:12]} 35. Ne4 {[%clk 0:00:04]}  Bxe4 {[%clk 0:01:12]} 36. Kxe4 {[%clk 0:00:04]}  Ke6 {[%clk 0:01:11]} 37. f4 {[%clk 0:00:04]}  f5+ {[%clk 0:01:11]} 38. Ke3 {[%clk 0:00:04]}  e4 {[%clk 0:01:10]} 39. g4 {[%clk 0:00:04]}  g6 {[%clk 0:01:08]} 40. h4 {[%clk 0:00:04]}  Kf6 {[%clk 0:01:07]} 41. h5 {[%clk 0:00:04]}  gxh5 {[%clk 0:01:04]} 42. gxh5 {[%clk 0:00:04]}  Ke7 {[%clk 0:01:01]} 43. Kf2 {[%clk 0:00:04]}  Kd6 {[%clk 0:01:01]} 44. Ke3 {[%clk 0:00:05]}  Kc6 {[%clk 0:01:01]} 45. Kf2 {[%clk 0:00:05]}  Kb6 {[%clk 0:01:01]} 46. Ke3 {[%clk 0:00:00]}  Ka5 {[%clk 0:01:02]} 0-1


[Site "https://www.chess.com"]

[Event "Titled Tuesday Blitz May 23 Late 2023"]
[White "Hajiyev, Kanan"]
[Black "Harish, Neeraj"]
[WhiteFideId "13404148"]
[BlackFideId "30958130"]
[WhiteElo "2103"]
[BlackElo "1879"]
[Result "0-1"]
[Round "07"]
[TimeControl "180+2"]
[Date "2023.05.23"]
[WhiteClock "0:00:37"]
[BlackClock "0:00:16"]

1. d4 {[%clk 0:02:57]}  d5 {[%clk 0:02:56]} 2. c4 {[%clk 0:02:58]}  e6 {[%clk 0:02:56]} 3. cxd5 {[%clk 0:02:58]}  exd5 {[%clk 0:02:56]} 4. Nc3 {[%clk 0:02:58]}  Nf6 {[%clk 0:02:57]} 5. Bg5 {[%clk 0:02:57]}  Be7 {[%clk 0:02:57]} 6. Qc2 {[%clk 0:02:56]}  h6 {[%clk 0:02:56]} 7. Bh4 {[%clk 0:02:56]}  O-O {[%clk 0:02:56]} 8. e3 {[%clk 0:02:55]}  c6 {[%clk 0:02:55]} 9. Bd3 {[%clk 0:02:55]}  Ne8 {[%clk 0:02:53]} 10. Bg3 {[%clk 0:02:53]}  Nd6 {[%clk 0:02:53]} 11. Nge2 {[%clk 0:02:48]}  Re8 {[%clk 0:02:53]} 12. O-O {[%clk 0:02:44]}  Bf8 {[%clk 0:02:53]} 13. Rfe1 {[%clk 0:02:24]}  a5 {[%clk 0:02:47]} 14. h3 {[%clk 0:02:23]}  Na6 {[%clk 0:02:48]} 15. a3 {[%clk 0:02:22]}  Bd7 {[%clk 0:02:43]} 16. Rac1 {[%clk 0:02:21]}  b5 {[%clk 0:02:34]} 17. Nf4 {[%clk 0:02:16]}  b4 {[%clk 0:02:13]} 18. Na4 {[%clk 0:02:14]}  bxa3 {[%clk 0:01:53]} 19. bxa3 {[%clk 0:02:15]}  Nb5 {[%clk 0:01:53]} 20. Bxb5 {[%clk 0:02:03]}  cxb5 {[%clk 0:01:52]} 21. Nc5 {[%clk 0:02:03]}  Nxc5 {[%clk 0:01:49]} 22. dxc5 {[%clk 0:02:04]}  Rc8 {[%clk 0:01:49]} 23. Nd3 {[%clk 0:01:49]}  Bf5 {[%clk 0:01:39]} 24. Qd2 {[%clk 0:01:48]}  d4 {[%clk 0:01:07]} 25. Ne5 {[%clk 0:01:11]}  Bxc5 {[%clk 0:00:57]} 26. e4 {[%clk 0:01:06]}  Be6 {[%clk 0:00:53]} 27. Qxa5 {[%clk 0:01:04]}  Qxa5 {[%clk 0:00:52]} 28. Nd3 {[%clk 0:00:54]}  Bc4 {[%clk 0:00:50]} 29. Nf4 {[%clk 0:00:53]}  Bxa3 {[%clk 0:00:48]} 30. Ra1 {[%clk 0:00:53]}  b4 {[%clk 0:00:47]} 31. f3 {[%clk 0:00:49]}  b3 {[%clk 0:00:46]} 32. Reb1 {[%clk 0:00:47]}  b2 {[%clk 0:00:43]} 33. Rxb2 {[%clk 0:00:46]}  Qc5 {[%clk 0:00:38]} 34. Rc2 {[%clk 0:00:45]}  d3+ {[%clk 0:00:35]} 35. Bf2 {[%clk 0:00:45]}  Qe5 {[%clk 0:00:33]} 36. Rca2 {[%clk 0:00:44]}  Qxf4 {[%clk 0:00:30]} 37. Rxa3 {[%clk 0:00:43]}  d2 {[%clk 0:00:30]} 38. Rd1 {[%clk 0:00:41]}  Be2 {[%clk 0:00:24]} 39. Be3 {[%clk 0:00:40]}  Qg3 {[%clk 0:00:16]} 40. Rxd2 {[%clk 0:00:39]}  Rc1+ {[%clk 0:00:15]} 41. Rd1 {[%clk 0:00:37]}  Rxd1# {[%clk 0:00:16]} 0-1


[Site "https://www.chess.com"]

[Event "Titled Tuesday Blitz May 23 Late 2023"]
[White "Hartikainen, Jarmo"]
[Black "Ziatdinov, Raset"]
[WhiteFideId "503134"]
[BlackFideId "2015323"]
[WhiteElo "2082"]
[BlackElo "2220"]
[Result "1-0"]
[Round "07"]
[TimeControl "180+2"]
[Date "2023.05.23"]
[WhiteClock "0:00:11"]
[BlackClock "0:00:17"]

1. e4 {[%clk 0:03:00]}  e6 {[%clk 0:02:57]} 2. d4 {[%clk 0:02:59]}  d5 {[%clk 0:02:58]} 3. Nd2 {[%clk 0:03:00]}  c5 {[%clk 0:02:57]} 4. Ngf3 {[%clk 0:02:59]}  Nc6 {[%clk 0:02:55]} 5. exd5 {[%clk 0:02:56]}  Qxd5 {[%clk 0:02:52]} 6. Bc4 {[%clk 0:02:56]}  Qd8 {[%clk 0:02:51]} 7. dxc5 {[%clk 0:02:54]}  Bxc5 {[%clk 0:02:51]} 8. O-O {[%clk 0:02:54]}  Nf6 {[%clk 0:02:50]} 9. Nb3 {[%clk 0:02:36]}  Qxd1 {[%clk 0:02:37]} 10. Rxd1 {[%clk 0:02:35]}  Bb6 {[%clk 0:02:37]} 11. Nbd4 {[%clk 0:02:23]}  Nxd4 {[%clk 0:02:32]} 12. Nxd4 {[%clk 0:02:23]}  O-O {[%clk 0:02:32]} 13. h3 {[%clk 0:02:05]}  Rd8 {[%clk 0:02:30]} 14. Be3 {[%clk 0:02:02]}  Nd5 {[%clk 0:02:28]} 15. Bxd5 {[%clk 0:01:55]}  Rxd5 {[%clk 0:02:27]} 16. c4 {[%clk 0:01:54]}  Rd8 {[%clk 0:02:26]} 17. Nf5 {[%clk 0:01:21]}  Bd7 {[%clk 0:02:04]} 18. Bxb6 {[%clk 0:01:15]}  axb6 {[%clk 0:02:02]} 19. Nd6 {[%clk 0:01:08]}  Bc6 {[%clk 0:01:54]} 20. Nb5 {[%clk 0:01:07]}  g6 {[%clk 0:01:49]} 21. a3 {[%clk 0:01:02]}  Kg7 {[%clk 0:01:44]} 22. f3 {[%clk 0:00:59]}  Kf6 {[%clk 0:01:43]} 23. Kf2 {[%clk 0:00:58]}  Bxb5 {[%clk 0:01:34]} 24. cxb5 {[%clk 0:00:56]}  Rac8 {[%clk 0:01:33]} 25. Rxd8 {[%clk 0:00:36]}  Rxd8 {[%clk 0:01:33]} 26. Ke3 {[%clk 0:00:32]}  Rd5 {[%clk 0:01:31]} 27. a4 {[%clk 0:00:32]}  Rc5 {[%clk 0:01:30]} 28. Rd1 {[%clk 0:00:21]}  Ke7 {[%clk 0:01:28]} 29. Rd2 {[%clk 0:00:20]}  f5 {[%clk 0:01:28]} 30. Kd3 {[%clk 0:00:16]}  Rd5+ {[%clk 0:01:23]} 31. Kc3 {[%clk 0:00:16]}  Rxd2 {[%clk 0:01:20]} 32. Kxd2 {[%clk 0:00:16]}  Kd6 {[%clk 0:01:20]} 33. Kc3 {[%clk 0:00:14]}  e5 {[%clk 0:01:20]} 34. b4 {[%clk 0:00:14]}  Kd5 {[%clk 0:00:42]} 35. h4 {[%clk 0:00:13]}  h6 {[%clk 0:00:39]} 36. a5 {[%clk 0:00:12]}  bxa5 {[%clk 0:00:35]} 37. bxa5 {[%clk 0:00:13]}  Kc5 {[%clk 0:00:35]} 38. a6 {[%clk 0:00:12]}  Kb6 {[%clk 0:00:34]} 39. axb7 {[%clk 0:00:11]}  Kxb7 {[%clk 0:00:34]} 40. Kc4 {[%clk 0:00:12]}  Kb6 {[%clk 0:00:33]} 41. Kd5 {[%clk 0:00:12]}  e4 {[%clk 0:00:17]} 42. fxe4 {[%clk 0:00:12]}  fxe4 {[%clk 0:00:18]} 43. Kxe4 {[%clk 0:00:12]}  Kxb5 {[%clk 0:00:18]} 44. Ke5 {[%clk 0:00:12]}  Kc5 {[%clk 0:00:18]} 45. Kf6 {[%clk 0:00:13]}  g5 {[%clk 0:00:17]} 46. hxg5 {[%clk 0:00:11]}  hxg5 {[%clk 0:00:18]} 47. Kxg5 {[%clk 0:00:11]}  Kd6 {[%clk 0:00:19]} 48. g4 {[%clk 0:00:11]}  Ke7 {[%clk 0:00:20]} 49. Kg6 {[%clk 0:00:10]}  Kf8 {[%clk 0:00:20]} 50. Kf6 {[%clk 0:00:10]}  Kg8 {[%clk 0:00:20]} 51. g5 {[%clk 0:00:10]}  Kf8 {[%clk 0:00:20]} 52. g6 {[%clk 0:00:10]}  Kg8 {[%clk 0:00:20]} 53. g7 {[%clk 0:00:11]}  Kh7 {[%clk 0:00:17]} 54. Kf7 {[%clk 0:00:11]} 1-0


[Site "https://www.chess.com"]

[Event "Titled Tuesday Blitz May 23 Late 2023"]
[White "Sariego Figueredo, Wilfredo"]
[Black "Alimpic, Aleksa"]
[WhiteFideId "3500080"]
[BlackFideId "974323"]
[WhiteElo "2309"]
[BlackElo "2298"]
[Result "0-1"]
[Round "07"]
[TimeControl "180+2"]
[Date "2023.05.23"]
[WhiteClock "0:00:00"]
[BlackClock "0:00:48"]

1. d4 {[%clk 0:03:00]}  d5 {[%clk 0:02:58]} 2. Bf4 {[%clk 0:02:56]}  Nf6 {[%clk 0:02:55]} 3. e3 {[%clk 0:02:55]}  c5 {[%clk 0:02:55]} 4. c3 {[%clk 0:02:54]}  Qb6 {[%clk 0:02:49]} 5. Qc2 {[%clk 0:02:42]}  e6 {[%clk 0:02:45]} 6. Nd2 {[%clk 0:02:38]}  Be7 {[%clk 0:02:41]} 7. Ngf3 {[%clk 0:02:32]}  O-O {[%clk 0:02:41]} 8. Bd3 {[%clk 0:02:26]}  Bd7 {[%clk 0:02:38]} 9. O-O {[%clk 0:02:22]}  Bb5 {[%clk 0:02:37]} 10. Bxb5 {[%clk 0:02:11]}  Qxb5 {[%clk 0:02:38]} 11. e4 {[%clk 0:02:08]}  dxe4 {[%clk 0:02:28]} 12. Nxe4 {[%clk 0:02:04]}  Nbd7 {[%clk 0:01:59]} 13. Bd6 {[%clk 0:01:59]}  Bxd6 {[%clk 0:01:54]} 14. Nxd6 {[%clk 0:01:52]}  Qb6 {[%clk 0:01:50]} 15. Nc4 {[%clk 0:01:31]}  Qc7 {[%clk 0:01:49]} 16. dxc5 {[%clk 0:01:18]}  Nxc5 {[%clk 0:01:47]} 17. Ne3 {[%clk 0:01:15]}  Rfd8 {[%clk 0:01:46]} 18. Rfd1 {[%clk 0:01:11]}  h6 {[%clk 0:01:46]} 19. Rxd8+ {[%clk 0:01:03]}  Rxd8 {[%clk 0:01:47]} 20. Rd1 {[%clk 0:00:59]}  a6 {[%clk 0:01:44]} 21. h3 {[%clk 0:00:56]}  Rxd1+ {[%clk 0:01:40]} 22. Qxd1 {[%clk 0:00:48]}  Qd7 {[%clk 0:01:41]} 23. Qxd7 {[%clk 0:00:22]}  Nfxd7 {[%clk 0:01:42]} 24. b3 {[%clk 0:00:17]}  f5 {[%clk 0:01:38]} 25. Nd4 {[%clk 0:00:17]}  Kf7 {[%clk 0:01:37]} 26. f4 {[%clk 0:00:17]}  g5 {[%clk 0:01:28]} 27. fxg5 {[%clk 0:00:16]}  hxg5 {[%clk 0:01:29]} 28. Nc4 {[%clk 0:00:15]}  Kf6 {[%clk 0:01:25]} 29. Ne3 {[%clk 0:00:10]}  Ne4 {[%clk 0:01:15]} 30. c4 {[%clk 0:00:08]}  Ndc5 {[%clk 0:01:06]} 31. Ndc2 {[%clk 0:00:03]}  e5 {[%clk 0:01:00]} 32. Nd5+ {[%clk 0:00:03]}  Ke6 {[%clk 0:01:00]} 33. Nce3 {[%clk 0:00:03]}  f4 {[%clk 0:00:55]} 34. Ng4 {[%clk 0:00:02]}  Nd3 {[%clk 0:00:53]} 35. Kh2 {[%clk 0:00:01]}  Nc1 {[%clk 0:00:50]} 36. Nb4 {[%clk 0:00:00]}  a5 {[%clk 0:00:48]} 0-1


[Site "https://www.chess.com"]

[Event "Titled Tuesday Blitz May 23 Late 2023"]
[White "Kev4444444444"]
[Black "Narva, Triin"]
[BlackFideId "4502680"]
[WhiteElo "2156"]
[BlackElo "1944"]
[Result "0-1"]
[Round "07"]
[TimeControl "180+2"]
[Date "2023.05.23"]
[WhiteClock "0:01:07"]
[BlackClock "0:00:15"]

1. Nf3 {[%clk 0:02:59]}  g6 {[%clk 0:02:59]} 2. g3 {[%clk 0:02:57]}  Bg7 {[%clk 0:03:00]} 3. Bg2 {[%clk 0:02:58]}  Nf6 {[%clk 0:03:00]} 4. O-O {[%clk 0:02:58]}  O-O {[%clk 0:03:01]} 5. c4 {[%clk 0:02:58]}  d6 {[%clk 0:03:02]} 6. d4 {[%clk 0:02:59]}  Nbd7 {[%clk 0:03:01]} 7. Nc3 {[%clk 0:02:59]}  c5 {[%clk 0:03:02]} 8. d5 {[%clk 0:02:57]}  a6 {[%clk 0:03:02]} 9. e4 {[%clk 0:02:48]}  b5 {[%clk 0:02:51]} 10. cxb5 {[%clk 0:02:45]}  axb5 {[%clk 0:02:52]} 11. Re1 {[%clk 0:02:45]}  b4 {[%clk 0:02:51]} 12. Nb1 {[%clk 0:02:46]}  Bb7 {[%clk 0:02:34]} 13. Qc2 {[%clk 0:02:45]}  Ng4 {[%clk 0:02:21]} 14. Nbd2 {[%clk 0:02:40]}  Ba6 {[%clk 0:02:14]} 15. Rb1 {[%clk 0:02:33]}  Nge5 {[%clk 0:02:10]} 16. Nxe5 {[%clk 0:02:33]}  Nxe5 {[%clk 0:02:10]} 17. Bf1 {[%clk 0:02:33]}  Bxf1 {[%clk 0:01:53]} 18. Kxf1 {[%clk 0:02:33]}  Rxa2 {[%clk 0:01:53]} 19. f4 {[%clk 0:02:30]}  Nd7 {[%clk 0:01:45]} 20. Nc4 {[%clk 0:02:30]}  Nb6 {[%clk 0:01:22]} 21. Qb3 {[%clk 0:02:29]}  Ra6 {[%clk 0:01:17]} 22. Be3 {[%clk 0:02:27]}  Qc7 {[%clk 0:01:11]} 23. Rbd1 {[%clk 0:02:24]}  Rfa8 {[%clk 0:01:09]} 24. e5 {[%clk 0:01:59]}  Nxc4 {[%clk 0:01:01]} 25. Qxc4 {[%clk 0:01:59]}  Ra2 {[%clk 0:00:51]} 26. Re2 {[%clk 0:01:49]}  Qd7 {[%clk 0:00:48]} 27. e6 {[%clk 0:01:37]}  fxe6 {[%clk 0:00:47]} 28. dxe6 {[%clk 0:01:38]}  Qc6 {[%clk 0:00:44]} 29. Kg1 {[%clk 0:01:38]}  Rxb2 {[%clk 0:00:40]} 30. f5 {[%clk 0:01:36]}  Qf3 {[%clk 0:00:29]} 31. Rde1 {[%clk 0:01:15]}  Rxe2 {[%clk 0:00:28]} 32. Qxe2 {[%clk 0:01:15]}  Qxf5 {[%clk 0:00:20]} 33. Rf1 {[%clk 0:01:10]}  Qxe6 {[%clk 0:00:19]} 34. Qf3 {[%clk 0:01:09]}  Rf8 {[%clk 0:00:18]} 35. Qe2 {[%clk 0:01:08]}  Rxf1+ {[%clk 0:00:18]} 36. Kxf1 {[%clk 0:01:07]}  Bd4 {[%clk 0:00:15]} 0-1


[Site "https://www.chess.com"]

[Event "Titled Tuesday Blitz May 23 Late 2023"]
[White "Florianovitz, Derlei Alex"]
[Black "Martinez, Ayelen"]
[WhiteFideId "2114178"]
[BlackFideId "118702"]
[WhiteElo "1953"]
[BlackElo "2125"]
[Result "0-1"]
[Round "07"]
[TimeControl "180+2"]
[Date "2023.05.23"]
[WhiteClock "0:00:04"]
[BlackClock "0:00:03"]

1. e4 {[%clk 0:03:00]}  c5 {[%clk 0:02:59]} 2. Nf3 {[%clk 0:02:59]}  d6 {[%clk 0:02:59]} 3. d4 {[%clk 0:03:00]}  cxd4 {[%clk 0:03:00]} 4. Nxd4 {[%clk 0:03:00]}  Nf6 {[%clk 0:02:58]} 5. Nc3 {[%clk 0:03:00]}  a6 {[%clk 0:02:57]} 6. h3 {[%clk 0:03:00]}  e5 {[%clk 0:02:54]} 7. Nde2 {[%clk 0:03:00]}  h5 {[%clk 0:02:53]} 8. Bg5 {[%clk 0:02:50]}  Be6 {[%clk 0:02:40]} 9. Bxf6 {[%clk 0:02:42]}  Qxf6 {[%clk 0:02:38]} 10. Nd5 {[%clk 0:02:43]}  Bxd5 {[%clk 0:02:11]} 11. Qxd5 {[%clk 0:02:44]}  Nd7 {[%clk 0:02:12]} 12. Nc3 {[%clk 0:02:35]}  Be7 {[%clk 0:02:04]} 13. Bc4 {[%clk 0:02:23]}  O-O {[%clk 0:02:00]} 14. Bb3 {[%clk 0:02:21]}  Nc5 {[%clk 0:01:54]} 15. O-O {[%clk 0:02:15]}  Qh4 {[%clk 0:01:34]} 16. Rae1 {[%clk 0:02:05]}  Rac8 {[%clk 0:01:32]} 17. Qd2 {[%clk 0:01:54]}  Bg5 {[%clk 0:01:23]} 18. Qxd6 {[%clk 0:01:52]}  Bf4 {[%clk 0:01:21]} 19. Nd5 {[%clk 0:01:38]}  Rfd8 {[%clk 0:00:57]} 20. Qe7 {[%clk 0:01:10]}  Bg5 {[%clk 0:00:24]} 21. Qxe5 {[%clk 0:01:08]}  Ne6 {[%clk 0:00:18]} 22. f4 {[%clk 0:00:50]}  Rxd5 {[%clk 0:00:18]} 23. exd5 {[%clk 0:00:39]}  Bxf4 {[%clk 0:00:10]} 24. Qf5 {[%clk 0:00:20]}  Qg3 {[%clk 0:00:06]} 25. Rxf4 {[%clk 0:00:16]}  Nxf4 {[%clk 0:00:06]} 26. Qxc8+ {[%clk 0:00:15]}  Kh7 {[%clk 0:00:05]} 27. Qf5+ {[%clk 0:00:15]}  Kh6 {[%clk 0:00:03]} 28. Qe4 {[%clk 0:00:04]}  Nxh3+ {[%clk 0:00:03]} 29. Kf1 {[%clk 0:00:04]}  Qf2# {[%clk 0:00:03]} 0-1


[Site "https://www.chess.com"]

[Event "Titled Tuesday Blitz May 23 Late 2023"]
[White "Liu, Kelsey"]
[Black "Burke, Paul"]
[WhiteFideId "30944481"]
[BlackFideId "2605767"]
[WhiteElo "2209"]
[BlackElo "1886"]
[Result "1-0"]
[Round "07"]
[TimeControl "180+2"]
[Date "2023.05.23"]
[WhiteClock "0:00:04"]
[BlackClock "0:00:23"]

1. d4 {[%clk 0:03:00]}  a6 {[%clk 0:02:59]} 2. Nf3 {[%clk 0:02:57]}  d6 {[%clk 0:02:59]} 3. Bf4 {[%clk 0:02:56]}  g6 {[%clk 0:02:59]} 4. e3 {[%clk 0:02:57]}  Bg7 {[%clk 0:02:59]} 5. Bd3 {[%clk 0:02:57]}  Nd7 {[%clk 0:02:59]} 6. Nbd2 {[%clk 0:02:53]}  h6 {[%clk 0:02:57]} 7. h4 {[%clk 0:02:52]}  e5 {[%clk 0:02:57]} 8. Bg3 {[%clk 0:02:50]}  Ne7 {[%clk 0:02:56]} 9. c3 {[%clk 0:02:50]}  O-O {[%clk 0:02:54]} 10. h5 {[%clk 0:02:46]}  g5 {[%clk 0:02:54]} 11. Qb3 {[%clk 0:02:38]}  b6 {[%clk 0:02:38]} 12. O-O-O {[%clk 0:02:35]}  Bb7 {[%clk 0:02:38]} 13. Nh2 {[%clk 0:02:13]}  Kh8 {[%clk 0:02:34]} 14. f4 {[%clk 0:02:12]}  f6 {[%clk 0:02:18]} 15. dxe5 {[%clk 0:02:07]}  dxe5 {[%clk 0:02:15]} 16. fxg5 {[%clk 0:02:01]}  fxg5 {[%clk 0:02:02]} 17. Bb1 {[%clk 0:01:37]}  Nf5 {[%clk 0:01:59]} 18. Qc2 {[%clk 0:01:12]}  Qe7 {[%clk 0:01:50]} 19. Rhf1 {[%clk 0:01:10]}  e4 {[%clk 0:01:41]} 20. Bf2 {[%clk 0:00:55]}  Rae8 {[%clk 0:01:35]} 21. Ng4 {[%clk 0:00:42]}  Nc5 {[%clk 0:01:32]} 22. Nc4 {[%clk 0:00:33]}  Nd3+ {[%clk 0:01:28]} 23. Rxd3 {[%clk 0:00:30]}  exd3 {[%clk 0:01:27]} 24. Qxd3 {[%clk 0:00:31]}  Rd8 {[%clk 0:01:20]} 25. Qc2 {[%clk 0:00:28]}  Bxg2 {[%clk 0:01:09]} 26. Rg1 {[%clk 0:00:17]}  Bf3 {[%clk 0:01:08]} 27. e4 {[%clk 0:00:13]}  Nd6 {[%clk 0:00:59]} 28. Nce5 {[%clk 0:00:13]}  Bxe5 {[%clk 0:00:53]} 29. Nxe5 {[%clk 0:00:13]}  Qxe5 {[%clk 0:00:52]} 30. Bd4 {[%clk 0:00:14]}  Rde8 {[%clk 0:00:47]} 31. Bxe5+ {[%clk 0:00:14]}  Rxe5 {[%clk 0:00:47]} 32. Qh2 {[%clk 0:00:05]}  Rfe8 {[%clk 0:00:41]} 33. Rf1 {[%clk 0:00:06]}  g4 {[%clk 0:00:36]} 34. Qf4 {[%clk 0:00:05]}  Kg7 {[%clk 0:00:31]} 35. Rg1 {[%clk 0:00:05]}  R5e7 {[%clk 0:00:23]} 36. Qxf3 {[%clk 0:00:04]} 1-0


[Site "https://www.chess.com"]